{"text_format":"1","workbook":"xlsx","n_sheets":5,"sheets":["使用方法","①謝金入力シート","②交通費入力シート","③領収書","③領収書（手打ち用）"],"not_rendered":{"charts":0,"images":0,"macros":1,"external_links":0,"defined_names":3,"comments":2,"pivot_tables":0},"unopened":[],"bounds":{"document_bytes":16777216,"sheet_cells":100000,"rows_first":2000,"rows_last":500,"rows_between":2000,"halvings":0,"cell_chars":16384,"cell_head_chars":4096},"cells_cut":0,"cells_raw":0,"read":"whole","date_system":"1900"}

{"sheet":"使用方法","index":0,"n_rows":17,"n_cols":1,"rows_kept":17,"cut":false,"hidden":false,"merged":[]}
["❶　「①謝金入力シート」へ謝金対象者を入力"]
["・オレンジのセルへ必要事項（協会名、氏名、区分、1日あたりの謝金額、源泉徴収の有無、対象日）を入力"]
["・著名指導者、特別講師の場合は1時間あたりの金額ではなく1日あたりの金額を入力する"]
[]
["❷　交通費が対象となる場合は「②交通費入力シート」へ入力"]
["・謝金対象日を全日、交通費支給日とする場合はプルダウンから「●」を選択"]
["・謝金対象日を全日、交通費支給日としない場合は、右側の欄へ対象日と日数を入力"]
["・経路と片道運賃を入力　※運賃は往復分支給することを想定しています"]
[]
["➌　印刷ボタン（青）から印刷を行う"]
["・①謝金入力シートへ入力した全員分の謝金を印刷する場合は「連続印刷」"]
["・①謝金入力シートへ入力した一部の人を印刷する場合は「項番指定印刷」　※項番１～10まで入力し、うち項番５～８だけを印刷する等も可"]
["・印刷ボタンは①謝金入力シートと③領収書の各シートにある（機能は同じ）"]
[]
["➍　その他"]
["・③領収書（手打ち用）シートの様式は全て手入力用の様式"]
["・各シートともオレンジ色のセル以外入力等は出来ない（③領収書シートの日付部分は除く）"]

{"sheet":"①謝金入力シート","index":1,"n_rows":109,"n_cols":58,"rows_kept":109,"cut":false,"hidden":false,"merged":[[3,2,3,3]]}
["●ジュニア育成地域推進事業（地区）　領収書作成ツール"]
[null,null,null,null,null,null,null,"ア：著名指導者","ア：特別講師","イ：医師","ウ：看護師","エ：指導者","エ：講師","エ：役員","エ：審判員","オ：補助指導者","オ：補助役員","オ：委員","オ：地区体育協会役員",null,null,null,null,"有","無"]
[null,null,"協会名"]
[null,"最初に入力をお願いします⇒"]
[]
[{"$f":"\"講師等一覧(計 \"&COUNTA($B$9:$B$108)&\" 名）\"","v":"講師等一覧(計 0 名）"},null,null,null,null,null,"最大50日まで"]
["項番","氏名","区分","1日あたりの\n謝金額","源泉徴収\nの有無","日数\n（入力不要）","1\n（謝金対象日）",2,3,4,5,6,7,8,9,10,11,12,13,14,15,16,17,18,19,20,21,22,23,24,25,26,27,28,29,30,31,32,33,34,35,36,37,38,39,40,41,42,43,44,45,46,47,48,49,50]
["例","東京　太郎","エ：指導者",5000,"有",{"$f":"COUNTA(G8:BD8)&\"日\"","v":"12日"},"2021-07-03","2021-07-04","2021-07-10","2021-07-11","2021-07-17","2021-07-18","2021-07-22","2021-07-23","2021-07-24","2021-07-25","2021-07-31","2021-08-01",null,null,null,null,null,null,null,null,null,null,null,null,null,null,null,null,null,null,null,null,null,null,null,null,null,null,null,null,null,null,null,null,null,null,null,null,null,null,"日数カウント","空欄チェック"]
[1,null,null,null,null,{"$f":"COUNTA($G9:$BD9)&\"日\"","v":"0日"},null,null,null,null,null,null,null,null,null,null,null,null,null,null,null,null,null,null,null,null,null,null,null,null,null,null,null,null,null,null,null,null,null,null,null,null,null,null,null,null,null,null,null,null,null,null,null,null,null,null,{"$f":"COUNTA(G9:BD9)","v":0},{"$f":"COUNTA(B9)","v":0}]
[2,null,null,null,null,{"$f":"COUNTA($G10:$BD10)&\"日\"","v":"0日"},null,null,null,null,null,null,null,null,null,null,null,null,null,null,null,null,null,null,null,null,null,null,null,null,null,null,null,null,null,null,null,null,null,null,null,null,null,null,null,null,null,null,null,null,null,null,null,null,null,null,{"$f":"COUNTA(G10:BD10)","v":0},{"$f":"IF(BF9=0,0,(COUNTA(B10,B9)-1))","v":0}]
[3,null,null,null,null,{"$f":"COUNTA($G11:$BD11)&\"日\"","v":"0日"},null,null,null,null,null,null,null,null,null,null,null,null,null,null,null,null,null,null,null,null,null,null,null,null,null,null,null,null,null,null,null,null,null,null,null,null,null,null,null,null,null,null,null,null,null,null,null,null,null,null,{"$f":"COUNTA(G11:BD11)","v":0},{"$f":"IF(BF10=0,0,(COUNTA(B11,B10)-1))","v":0}]
[4,null,null,null,null,"0日",null,null,null,null,null,null,null,null,null,null,null,null,null,null,null,null,null,null,null,null,null,null,null,null,null,null,null,null,null,null,null,null,null,null,null,null,null,null,null,null,null,null,null,null,null,null,null,null,null,null,0,{"$f":"IF(BF11=0,0,(COUNTA(B12,B11)-1))","v":0}]
[5,null,null,null,null,"0日",null,null,null,null,null,null,null,null,null,null,null,null,null,null,null,null,null,null,null,null,null,null,null,null,null,null,null,null,null,null,null,null,null,null,null,null,null,null,null,null,null,null,null,null,null,null,null,null,null,null,0,0]
[6,null,null,null,null,"0日",null,null,null,null,null,null,null,null,null,null,null,null,null,null,null,null,null,null,null,null,null,null,null,null,null,null,null,null,null,null,null,null,null,null,null,null,null,null,null,null,null,null,null,null,null,null,null,null,null,null,0,0]
[7,null,null,null,null,"0日",null,null,null,null,null,null,null,null,null,null,null,null,null,null,null,null,null,null,null,null,null,null,null,null,null,null,null,null,null,null,null,null,null,null,null,null,null,null,null,null,null,null,null,null,null,null,null,null,null,null,0,0]
[8,null,null,null,null,"0日",null,null,null,null,null,null,null,null,null,null,null,null,null,null,null,null,null,null,null,null,null,null,null,null,null,null,null,null,null,null,null,null,null,null,null,null,null,null,null,null,null,null,null,null,null,null,null,null,null,null,0,0]
[9,null,null,null,null,"0日",null,null,null,null,null,null,null,null,null,null,null,null,null,null,null,null,null,null,null,null,null,null,null,null,null,null,null,null,null,null,null,null,null,null,null,null,null,null,null,null,null,null,null,null,null,null,null,null,null,null,0,0]
[10,null,null,null,null,"0日",null,null,null,null,null,null,null,null,null,null,null,null,null,null,null,null,null,null,null,null,null,null,null,null,null,null,null,null,null,null,null,null,null,null,null,null,null,null,null,null,null,null,null,null,null,null,null,null,null,null,0,0]
[11,null,null,null,null,"0日",null,null,null,null,null,null,null,null,null,null,null,null,null,null,null,null,null,null,null,null,null,null,null,null,null,null,null,null,null,null,null,null,null,null,null,null,null,null,null,null,null,null,null,null,null,null,null,null,null,null,0,0]
[12,null,null,null,null,"0日",null,null,null,null,null,null,null,null,null,null,null,null,null,null,null,null,null,null,null,null,null,null,null,null,null,null,null,null,null,null,null,null,null,null,null,null,null,null,null,null,null,null,null,null,null,null,null,null,null,null,0,0]
[13,null,null,null,null,"0日",null,null,null,null,null,null,null,null,null,null,null,null,null,null,null,null,null,null,null,null,null,null,null,null,null,null,null,null,null,null,null,null,null,null,null,null,null,null,null,null,null,null,null,null,null,null,null,null,null,null,0,0]
[14,null,null,null,null,"0日",null,null,null,null,null,null,null,null,null,null,null,null,null,null,null,null,null,null,null,null,null,null,null,null,null,null,null,null,null,null,null,null,null,null,null,null,null,null,null,null,null,null,null,null,null,null,null,null,null,null,0,0]
[15,null,null,null,null,"0日",null,null,null,null,null,null,null,null,null,null,null,null,null,null,null,null,null,null,null,null,null,null,null,null,null,null,null,null,null,null,null,null,null,null,null,null,null,null,null,null,null,null,null,null,null,null,null,null,null,null,0,0]
[16,null,null,null,null,"0日",null,null,null,null,null,null,null,null,null,null,null,null,null,null,null,null,null,null,null,null,null,null,null,null,null,null,null,null,null,null,null,null,null,null,null,null,null,null,null,null,null,null,null,null,null,null,null,null,null,null,0,0]
[17,null,null,null,null,"0日",null,null,null,null,null,null,null,null,null,null,null,null,null,null,null,null,null,null,null,null,null,null,null,null,null,null,null,null,null,null,null,null,null,null,null,null,null,null,null,null,null,null,null,null,null,null,null,null,null,null,0,0]
[18,null,null,null,null,"0日",null,null,null,null,null,null,null,null,null,null,null,null,null,null,null,null,null,null,null,null,null,null,null,null,null,null,null,null,null,null,null,null,null,null,null,null,null,null,null,null,null,null,null,null,null,null,null,null,null,null,0,0]
[19,null,null,null,null,"0日",null,null,null,null,null,null,null,null,null,null,null,null,null,null,null,null,null,null,null,null,null,null,null,null,null,null,null,null,null,null,null,null,null,null,null,null,null,null,null,null,null,null,null,null,null,null,null,null,null,null,0,0]
[20,null,null,null,null,"0日",null,null,null,null,null,null,null,null,null,null,null,null,null,null,null,null,null,null,null,null,null,null,null,null,null,null,null,null,null,null,null,null,null,null,null,null,null,null,null,null,null,null,null,null,null,null,null,null,null,null,0,0]
[21,null,null,null,null,"0日",null,null,null,null,null,null,null,null,null,null,null,null,null,null,null,null,null,null,null,null,null,null,null,null,null,null,null,null,null,null,null,null,null,null,null,null,null,null,null,null,null,null,null,null,null,null,null,null,null,null,0,0]
[22,null,null,null,null,"0日",null,null,null,null,null,null,null,null,null,null,null,null,null,null,null,null,null,null,null,null,null,null,null,null,null,null,null,null,null,null,null,null,null,null,null,null,null,null,null,null,null,null,null,null,null,null,null,null,null,null,0,0]
[23,null,null,null,null,"0日",null,null,null,null,null,null,null,null,null,null,null,null,null,null,null,null,null,null,null,null,null,null,null,null,null,null,null,null,null,null,null,null,null,null,null,null,null,null,null,null,null,null,null,null,null,null,null,null,null,null,0,0]
[24,null,null,null,null,"0日",null,null,null,null,null,null,null,null,null,null,null,null,null,null,null,null,null,null,null,null,null,null,null,null,null,null,null,null,null,null,null,null,null,null,null,null,null,null,null,null,null,null,null,null,null,null,null,null,null,null,0,0]
[25,null,null,null,null,"0日",null,null,null,null,null,null,null,null,null,null,null,null,null,null,null,null,null,null,null,null,null,null,null,null,null,null,null,null,null,null,null,null,null,null,null,null,null,null,null,null,null,null,null,null,null,null,null,null,null,null,0,0]
[26,null,null,null,null,"0日",null,null,null,null,null,null,null,null,null,null,null,null,null,null,null,null,null,null,null,null,null,null,null,null,null,null,null,null,null,null,null,null,null,null,null,null,null,null,null,null,null,null,null,null,null,null,null,null,null,null,0,0]
[27,null,null,null,null,"0日",null,null,null,null,null,null,null,null,null,null,null,null,null,null,null,null,null,null,null,null,null,null,null,null,null,null,null,null,null,null,null,null,null,null,null,null,null,null,null,null,null,null,null,null,null,null,null,null,null,null,0,0]
[28,null,null,null,null,"0日",null,null,null,null,null,null,null,null,null,null,null,null,null,null,null,null,null,null,null,null,null,null,null,null,null,null,null,null,null,null,null,null,null,null,null,null,null,null,null,null,null,null,null,null,null,null,null,null,null,null,0,0]
[29,null,null,null,null,"0日",null,null,null,null,null,null,null,null,null,null,null,null,null,null,null,null,null,null,null,null,null,null,null,null,null,null,null,null,null,null,null,null,null,null,null,null,null,null,null,null,null,null,null,null,null,null,null,null,null,null,0,0]
[30,null,null,null,null,"0日",null,null,null,null,null,null,null,null,null,null,null,null,null,null,null,null,null,null,null,null,null,null,null,null,null,null,null,null,null,null,null,null,null,null,null,null,null,null,null,null,null,null,null,null,null,null,null,null,null,null,0,0]
[31,null,null,null,null,"0日",null,null,null,null,null,null,null,null,null,null,null,null,null,null,null,null,null,null,null,null,null,null,null,null,null,null,null,null,null,null,null,null,null,null,null,null,null,null,null,null,null,null,null,null,null,null,null,null,null,null,0,0]
[32,null,null,null,null,"0日",null,null,null,null,null,null,null,null,null,null,null,null,null,null,null,null,null,null,null,null,null,null,null,null,null,null,null,null,null,null,null,null,null,null,null,null,null,null,null,null,null,null,null,null,null,null,null,null,null,null,0,0]
[33,null,null,null,null,"0日",null,null,null,null,null,null,null,null,null,null,null,null,null,null,null,null,null,null,null,null,null,null,null,null,null,null,null,null,null,null,null,null,null,null,null,null,null,null,null,null,null,null,null,null,null,null,null,null,null,null,0,0]
[34,null,null,null,null,"0日",null,null,null,null,null,null,null,null,null,null,null,null,null,null,null,null,null,null,null,null,null,null,null,null,null,null,null,null,null,null,null,null,null,null,null,null,null,null,null,null,null,null,null,null,null,null,null,null,null,null,0,0]
[35,null,null,null,null,"0日",null,null,null,null,null,null,null,null,null,null,null,null,null,null,null,null,null,null,null,null,null,null,null,null,null,null,null,null,null,null,null,null,null,null,null,null,null,null,null,null,null,null,null,null,null,null,null,null,null,null,0,0]
[36,null,null,null,null,"0日",null,null,null,null,null,null,null,null,null,null,null,null,null,null,null,null,null,null,null,null,null,null,null,null,null,null,null,null,null,null,null,null,null,null,null,null,null,null,null,null,null,null,null,null,null,null,null,null,null,null,0,0]
[37,null,null,null,null,"0日",null,null,null,null,null,null,null,null,null,null,null,null,null,null,null,null,null,null,null,null,null,null,null,null,null,null,null,null,null,null,null,null,null,null,null,null,null,null,null,null,null,null,null,null,null,null,null,null,null,null,0,0]
[38,null,null,null,null,"0日",null,null,null,null,null,null,null,null,null,null,null,null,null,null,null,null,null,null,null,null,null,null,null,null,null,null,null,null,null,null,null,null,null,null,null,null,null,null,null,null,null,null,null,null,null,null,null,null,null,null,0,0]
[39,null,null,null,null,"0日",null,null,null,null,null,null,null,null,null,null,null,null,null,null,null,null,null,null,null,null,null,null,null,null,null,null,null,null,null,null,null,null,null,null,null,null,null,null,null,null,null,null,null,null,null,null,null,null,null,null,0,0]
[40,null,null,null,null,"0日",null,null,null,null,null,null,null,null,null,null,null,null,null,null,null,null,null,null,null,null,null,null,null,null,null,null,null,null,null,null,null,null,null,null,null,null,null,null,null,null,null,null,null,null,null,null,null,null,null,null,0,0]
[41,null,null,null,null,"0日",null,null,null,null,null,null,null,null,null,null,null,null,null,null,null,null,null,null,null,null,null,null,null,null,null,null,null,null,null,null,null,null,null,null,null,null,null,null,null,null,null,null,null,null,null,null,null,null,null,null,0,0]
[42,null,null,null,null,"0日",null,null,null,null,null,null,null,null,null,null,null,null,null,null,null,null,null,null,null,null,null,null,null,null,null,null,null,null,null,null,null,null,null,null,null,null,null,null,null,null,null,null,null,null,null,null,null,null,null,null,0,0]
[43,null,null,null,null,"0日",null,null,null,null,null,null,null,null,null,null,null,null,null,null,null,null,null,null,null,null,null,null,null,null,null,null,null,null,null,null,null,null,null,null,null,null,null,null,null,null,null,null,null,null,null,null,null,null,null,null,0,0]
[44,null,null,null,null,"0日",null,null,null,null,null,null,null,null,null,null,null,null,null,null,null,null,null,null,null,null,null,null,null,null,null,null,null,null,null,null,null,null,null,null,null,null,null,null,null,null,null,null,null,null,null,null,null,null,null,null,0,0]
[45,null,null,null,null,"0日",null,null,null,null,null,null,null,null,null,null,null,null,null,null,null,null,null,null,null,null,null,null,null,null,null,null,null,null,null,null,null,null,null,null,null,null,null,null,null,null,null,null,null,null,null,null,null,null,null,null,0,0]
[46,null,null,null,null,"0日",null,null,null,null,null,null,null,null,null,null,null,null,null,null,null,null,null,null,null,null,null,null,null,null,null,null,null,null,null,null,null,null,null,null,null,null,null,null,null,null,null,null,null,null,null,null,null,null,null,null,0,0]
[47,null,null,null,null,"0日",null,null,null,null,null,null,null,null,null,null,null,null,null,null,null,null,null,null,null,null,null,null,null,null,null,null,null,null,null,null,null,null,null,null,null,null,null,null,null,null,null,null,null,null,null,null,null,null,null,null,0,0]
[48,null,null,null,null,"0日",null,null,null,null,null,null,null,null,null,null,null,null,null,null,null,null,null,null,null,null,null,null,null,null,null,null,null,null,null,null,null,null,null,null,null,null,null,null,null,null,null,null,null,null,null,null,null,null,null,null,0,0]
[49,null,null,null,null,"0日",null,null,null,null,null,null,null,null,null,null,null,null,null,null,null,null,null,null,null,null,null,null,null,null,null,null,null,null,null,null,null,null,null,null,null,null,null,null,null,null,null,null,null,null,null,null,null,null,null,null,0,0]
[50,null,null,null,null,"0日",null,null,null,null,null,null,null,null,null,null,null,null,null,null,null,null,null,null,null,null,null,null,null,null,null,null,null,null,null,null,null,null,null,null,null,null,null,null,null,null,null,null,null,null,null,null,null,null,null,null,0,0]
[51,null,null,null,null,"0日",null,null,null,null,null,null,null,null,null,null,null,null,null,null,null,null,null,null,null,null,null,null,null,null,null,null,null,null,null,null,null,null,null,null,null,null,null,null,null,null,null,null,null,null,null,null,null,null,null,null,0,0]
[52,null,null,null,null,"0日",null,null,null,null,null,null,null,null,null,null,null,null,null,null,null,null,null,null,null,null,null,null,null,null,null,null,null,null,null,null,null,null,null,null,null,null,null,null,null,null,null,null,null,null,null,null,null,null,null,null,0,0]
[53,null,null,null,null,"0日",null,null,null,null,null,null,null,null,null,null,null,null,null,null,null,null,null,null,null,null,null,null,null,null,null,null,null,null,null,null,null,null,null,null,null,null,null,null,null,null,null,null,null,null,null,null,null,null,null,null,0,0]
[54,null,null,null,null,"0日",null,null,null,null,null,null,null,null,null,null,null,null,null,null,null,null,null,null,null,null,null,null,null,null,null,null,null,null,null,null,null,null,null,null,null,null,null,null,null,null,null,null,null,null,null,null,null,null,null,null,0,0]
[55,null,null,null,null,"0日",null,null,null,null,null,null,null,null,null,null,null,null,null,null,null,null,null,null,null,null,null,null,null,null,null,null,null,null,null,null,null,null,null,null,null,null,null,null,null,null,null,null,null,null,null,null,null,null,null,null,0,0]
[56,null,null,null,null,"0日",null,null,null,null,null,null,null,null,null,null,null,null,null,null,null,null,null,null,null,null,null,null,null,null,null,null,null,null,null,null,null,null,null,null,null,null,null,null,null,null,null,null,null,null,null,null,null,null,null,null,0,0]
[57,null,null,null,null,"0日",null,null,null,null,null,null,null,null,null,null,null,null,null,null,null,null,null,null,null,null,null,null,null,null,null,null,null,null,null,null,null,null,null,null,null,null,null,null,null,null,null,null,null,null,null,null,null,null,null,null,0,0]
[58,null,null,null,null,"0日",null,null,null,null,null,null,null,null,null,null,null,null,null,null,null,null,null,null,null,null,null,null,null,null,null,null,null,null,null,null,null,null,null,null,null,null,null,null,null,null,null,null,null,null,null,null,null,null,null,null,0,0]
[59,null,null,null,null,"0日",null,null,null,null,null,null,null,null,null,null,null,null,null,null,null,null,null,null,null,null,null,null,null,null,null,null,null,null,null,null,null,null,null,null,null,null,null,null,null,null,null,null,null,null,null,null,null,null,null,null,0,0]
[60,null,null,null,null,"0日",null,null,null,null,null,null,null,null,null,null,null,null,null,null,null,null,null,null,null,null,null,null,null,null,null,null,null,null,null,null,null,null,null,null,null,null,null,null,null,null,null,null,null,null,null,null,null,null,null,null,0,0]
[61,null,null,null,null,"0日",null,null,null,null,null,null,null,null,null,null,null,null,null,null,null,null,null,null,null,null,null,null,null,null,null,null,null,null,null,null,null,null,null,null,null,null,null,null,null,null,null,null,null,null,null,null,null,null,null,null,0,0]
[62,null,null,null,null,"0日",null,null,null,null,null,null,null,null,null,null,null,null,null,null,null,null,null,null,null,null,null,null,null,null,null,null,null,null,null,null,null,null,null,null,null,null,null,null,null,null,null,null,null,null,null,null,null,null,null,null,0,0]
[63,null,null,null,null,"0日",null,null,null,null,null,null,null,null,null,null,null,null,null,null,null,null,null,null,null,null,null,null,null,null,null,null,null,null,null,null,null,null,null,null,null,null,null,null,null,null,null,null,null,null,null,null,null,null,null,null,0,0]
[64,null,null,null,null,"0日",null,null,null,null,null,null,null,null,null,null,null,null,null,null,null,null,null,null,null,null,null,null,null,null,null,null,null,null,null,null,null,null,null,null,null,null,null,null,null,null,null,null,null,null,null,null,null,null,null,null,0,0]
[65,null,null,null,null,"0日",null,null,null,null,null,null,null,null,null,null,null,null,null,null,null,null,null,null,null,null,null,null,null,null,null,null,null,null,null,null,null,null,null,null,null,null,null,null,null,null,null,null,null,null,null,null,null,null,null,null,0,0]
[66,null,null,null,null,"0日",null,null,null,null,null,null,null,null,null,null,null,null,null,null,null,null,null,null,null,null,null,null,null,null,null,null,null,null,null,null,null,null,null,null,null,null,null,null,null,null,null,null,null,null,null,null,null,null,null,null,0,0]
[67,null,null,null,null,{"$f":"COUNTA($G75:$BD75)&\"日\"","v":"0日"},null,null,null,null,null,null,null,null,null,null,null,null,null,null,null,null,null,null,null,null,null,null,null,null,null,null,null,null,null,null,null,null,null,null,null,null,null,null,null,null,null,null,null,null,null,null,null,null,null,null,{"$f":"COUNTA(G75:BD75)","v":0},0]
[68,null,null,null,null,"0日",null,null,null,null,null,null,null,null,null,null,null,null,null,null,null,null,null,null,null,null,null,null,null,null,null,null,null,null,null,null,null,null,null,null,null,null,null,null,null,null,null,null,null,null,null,null,null,null,null,null,0,{"$f":"IF(BF75=0,0,(COUNTA(B76,B75)-1))","v":0}]
[69,null,null,null,null,"0日",null,null,null,null,null,null,null,null,null,null,null,null,null,null,null,null,null,null,null,null,null,null,null,null,null,null,null,null,null,null,null,null,null,null,null,null,null,null,null,null,null,null,null,null,null,null,null,null,null,null,0,0]
[70,null,null,null,null,"0日",null,null,null,null,null,null,null,null,null,null,null,null,null,null,null,null,null,null,null,null,null,null,null,null,null,null,null,null,null,null,null,null,null,null,null,null,null,null,null,null,null,null,null,null,null,null,null,null,null,null,0,0]
[71,null,null,null,null,"0日",null,null,null,null,null,null,null,null,null,null,null,null,null,null,null,null,null,null,null,null,null,null,null,null,null,null,null,null,null,null,null,null,null,null,null,null,null,null,null,null,null,null,null,null,null,null,null,null,null,null,0,0]
[72,null,null,null,null,"0日",null,null,null,null,null,null,null,null,null,null,null,null,null,null,null,null,null,null,null,null,null,null,null,null,null,null,null,null,null,null,null,null,null,null,null,null,null,null,null,null,null,null,null,null,null,null,null,null,null,null,0,0]
[73,null,null,null,null,"0日",null,null,null,null,null,null,null,null,null,null,null,null,null,null,null,null,null,null,null,null,null,null,null,null,null,null,null,null,null,null,null,null,null,null,null,null,null,null,null,null,null,null,null,null,null,null,null,null,null,null,0,0]
[74,null,null,null,null,"0日",null,null,null,null,null,null,null,null,null,null,null,null,null,null,null,null,null,null,null,null,null,null,null,null,null,null,null,null,null,null,null,null,null,null,null,null,null,null,null,null,null,null,null,null,null,null,null,null,null,null,0,0]
[75,null,null,null,null,"0日",null,null,null,null,null,null,null,null,null,null,null,null,null,null,null,null,null,null,null,null,null,null,null,null,null,null,null,null,null,null,null,null,null,null,null,null,null,null,null,null,null,null,null,null,null,null,null,null,null,null,0,0]
[76,null,null,null,null,"0日",null,null,null,null,null,null,null,null,null,null,null,null,null,null,null,null,null,null,null,null,null,null,null,null,null,null,null,null,null,null,null,null,null,null,null,null,null,null,null,null,null,null,null,null,null,null,null,null,null,null,0,0]
[77,null,null,null,null,"0日",null,null,null,null,null,null,null,null,null,null,null,null,null,null,null,null,null,null,null,null,null,null,null,null,null,null,null,null,null,null,null,null,null,null,null,null,null,null,null,null,null,null,null,null,null,null,null,null,null,null,0,0]
[78,null,null,null,null,"0日",null,null,null,null,null,null,null,null,null,null,null,null,null,null,null,null,null,null,null,null,null,null,null,null,null,null,null,null,null,null,null,null,null,null,null,null,null,null,null,null,null,null,null,null,null,null,null,null,null,null,0,0]
[79,null,null,null,null,"0日",null,null,null,null,null,null,null,null,null,null,null,null,null,null,null,null,null,null,null,null,null,null,null,null,null,null,null,null,null,null,null,null,null,null,null,null,null,null,null,null,null,null,null,null,null,null,null,null,null,null,0,0]
[80,null,null,null,null,"0日",null,null,null,null,null,null,null,null,null,null,null,null,null,null,null,null,null,null,null,null,null,null,null,null,null,null,null,null,null,null,null,null,null,null,null,null,null,null,null,null,null,null,null,null,null,null,null,null,null,null,0,0]
[81,null,null,null,null,"0日",null,null,null,null,null,null,null,null,null,null,null,null,null,null,null,null,null,null,null,null,null,null,null,null,null,null,null,null,null,null,null,null,null,null,null,null,null,null,null,null,null,null,null,null,null,null,null,null,null,null,0,0]
[82,null,null,null,null,"0日",null,null,null,null,null,null,null,null,null,null,null,null,null,null,null,null,null,null,null,null,null,null,null,null,null,null,null,null,null,null,null,null,null,null,null,null,null,null,null,null,null,null,null,null,null,null,null,null,null,null,0,0]
[83,null,null,null,null,"0日",null,null,null,null,null,null,null,null,null,null,null,null,null,null,null,null,null,null,null,null,null,null,null,null,null,null,null,null,null,null,null,null,null,null,null,null,null,null,null,null,null,null,null,null,null,null,null,null,null,null,0,0]
[84,null,null,null,null,"0日",null,null,null,null,null,null,null,null,null,null,null,null,null,null,null,null,null,null,null,null,null,null,null,null,null,null,null,null,null,null,null,null,null,null,null,null,null,null,null,null,null,null,null,null,null,null,null,null,null,null,0,0]
[85,null,null,null,null,"0日",null,null,null,null,null,null,null,null,null,null,null,null,null,null,null,null,null,null,null,null,null,null,null,null,null,null,null,null,null,null,null,null,null,null,null,null,null,null,null,null,null,null,null,null,null,null,null,null,null,null,0,0]
[86,null,null,null,null,"0日",null,null,null,null,null,null,null,null,null,null,null,null,null,null,null,null,null,null,null,null,null,null,null,null,null,null,null,null,null,null,null,null,null,null,null,null,null,null,null,null,null,null,null,null,null,null,null,null,null,null,0,0]
[87,null,null,null,null,"0日",null,null,null,null,null,null,null,null,null,null,null,null,null,null,null,null,null,null,null,null,null,null,null,null,null,null,null,null,null,null,null,null,null,null,null,null,null,null,null,null,null,null,null,null,null,null,null,null,null,null,0,0]
[88,null,null,null,null,"0日",null,null,null,null,null,null,null,null,null,null,null,null,null,null,null,null,null,null,null,null,null,null,null,null,null,null,null,null,null,null,null,null,null,null,null,null,null,null,null,null,null,null,null,null,null,null,null,null,null,null,0,0]
[89,null,null,null,null,"0日",null,null,null,null,null,null,null,null,null,null,null,null,null,null,null,null,null,null,null,null,null,null,null,null,null,null,null,null,null,null,null,null,null,null,null,null,null,null,null,null,null,null,null,null,null,null,null,null,null,null,0,0]
[90,null,null,null,null,"0日",null,null,null,null,null,null,null,null,null,null,null,null,null,null,null,null,null,null,null,null,null,null,null,null,null,null,null,null,null,null,null,null,null,null,null,null,null,null,null,null,null,null,null,null,null,null,null,null,null,null,0,0]
[91,null,null,null,null,"0日",null,null,null,null,null,null,null,null,null,null,null,null,null,null,null,null,null,null,null,null,null,null,null,null,null,null,null,null,null,null,null,null,null,null,null,null,null,null,null,null,null,null,null,null,null,null,null,null,null,null,0,0]
[92,null,null,null,null,"0日",null,null,null,null,null,null,null,null,null,null,null,null,null,null,null,null,null,null,null,null,null,null,null,null,null,null,null,null,null,null,null,null,null,null,null,null,null,null,null,null,null,null,null,null,null,null,null,null,null,null,0,0]
[93,null,null,null,null,"0日",null,null,null,null,null,null,null,null,null,null,null,null,null,null,null,null,null,null,null,null,null,null,null,null,null,null,null,null,null,null,null,null,null,null,null,null,null,null,null,null,null,null,null,null,null,null,null,null,null,null,0,0]
[94,null,null,null,null,"0日",null,null,null,null,null,null,null,null,null,null,null,null,null,null,null,null,null,null,null,null,null,null,null,null,null,null,null,null,null,null,null,null,null,null,null,null,null,null,null,null,null,null,null,null,null,null,null,null,null,null,0,0]
[95,null,null,null,null,"0日",null,null,null,null,null,null,null,null,null,null,null,null,null,null,null,null,null,null,null,null,null,null,null,null,null,null,null,null,null,null,null,null,null,null,null,null,null,null,null,null,null,null,null,null,null,null,null,null,null,null,0,0]
[96,null,null,null,null,"0日",null,null,null,null,null,null,null,null,null,null,null,null,null,null,null,null,null,null,null,null,null,null,null,null,null,null,null,null,null,null,null,null,null,null,null,null,null,null,null,null,null,null,null,null,null,null,null,null,null,null,0,0]
[97,null,null,null,null,"0日",null,null,null,null,null,null,null,null,null,null,null,null,null,null,null,null,null,null,null,null,null,null,null,null,null,null,null,null,null,null,null,null,null,null,null,null,null,null,null,null,null,null,null,null,null,null,null,null,null,null,0,0]
[98,null,null,null,null,"0日",null,null,null,null,null,null,null,null,null,null,null,null,null,null,null,null,null,null,null,null,null,null,null,null,null,null,null,null,null,null,null,null,null,null,null,null,null,null,null,null,null,null,null,null,null,null,null,null,null,null,0,0]
[99,null,null,null,null,"0日",null,null,null,null,null,null,null,null,null,null,null,null,null,null,null,null,null,null,null,null,null,null,null,null,null,null,null,null,null,null,null,null,null,null,null,null,null,null,null,null,null,null,null,null,null,null,null,null,null,null,0,0]
[100,null,null,null,null,"0日",null,null,null,null,null,null,null,null,null,null,null,null,null,null,null,null,null,null,null,null,null,null,null,null,null,null,null,null,null,null,null,null,null,null,null,null,null,null,null,null,null,null,null,null,null,null,null,null,null,null,0,0]
[null,{"$f":"COUNTA(B9:B108)","v":0},null,null,null,null,null,null,null,null,null,null,null,null,null,null,null,null,null,null,null,null,null,null,null,null,null,null,null,null,null,null,null,null,null,null,null,null,null,null,null,null,null,null,null,null,null,null,null,null,null,null,null,null,null,null,null,{"$f":"SUM(BF9:BF108)","v":0}]

{"sheet":"②交通費入力シート","index":2,"n_rows":105,"n_cols":8,"rows_kept":105,"cut":false,"hidden":false,"merged":[[2,0,3,0],[2,1,3,1],[2,2,3,2],[2,6,3,6],[2,7,3,7],[2,3,2,5]]}
["●ジュニア育成地域推進事業（地区）　領収書作成ツール（交通費）"]
[]
["No.","氏名","区分","日程",null,null,"交通費経路（詳細にお願いします。）","片道料金"]
[null,null,null,"全日\n対象","一部対象（具体的日程を記載）","日数"]
["例",{"$f":"①謝金入力シート!B8","v":"東京　太郎"},{"$f":"①謝金入力シート!C8","v":"エ：指導者"},null,"7/3,４,10",3,"国立競技場～勝どき（地下鉄）　勝どき～有明小中学校前（バス）　",430]
[1,{"$f":"①謝金入力シート!$B9","v":0},{"$f":"①謝金入力シート!$C9","v":0}]
[2,{"$f":"①謝金入力シート!$B10","v":0},{"$f":"①謝金入力シート!$C10","v":0}]
[3,{"$f":"①謝金入力シート!$B11","v":0},{"$f":"①謝金入力シート!$C11","v":0}]
[4,{"$f":"①謝金入力シート!$B12","v":0},{"$f":"①謝金入力シート!$C12","v":0}]
[5,{"$f":"①謝金入力シート!$B13","v":0},{"$f":"①謝金入力シート!$C13","v":0}]
[6,{"$f":"①謝金入力シート!$B14","v":0},{"$f":"①謝金入力シート!$C14","v":0}]
[7,{"$f":"①謝金入力シート!$B15","v":0},{"$f":"①謝金入力シート!$C15","v":0}]
[8,{"$f":"①謝金入力シート!$B16","v":0},{"$f":"①謝金入力シート!$C16","v":0}]
[9,{"$f":"①謝金入力シート!$B17","v":0},{"$f":"①謝金入力シート!$C17","v":0}]
[10,{"$f":"①謝金入力シート!$B18","v":0},{"$f":"①謝金入力シート!$C18","v":0}]
[11,{"$f":"①謝金入力シート!$B19","v":0},{"$f":"①謝金入力シート!$C19","v":0}]
[12,{"$f":"①謝金入力シート!$B20","v":0},{"$f":"①謝金入力シート!$C20","v":0}]
[13,{"$f":"①謝金入力シート!$B21","v":0},{"$f":"①謝金入力シート!$C21","v":0}]
[14,{"$f":"①謝金入力シート!$B22","v":0},{"$f":"①謝金入力シート!$C22","v":0}]
[15,{"$f":"①謝金入力シート!$B23","v":0},{"$f":"①謝金入力シート!$C23","v":0}]
[16,{"$f":"①謝金入力シート!$B24","v":0},{"$f":"①謝金入力シート!$C24","v":0}]
[17,{"$f":"①謝金入力シート!$B25","v":0},{"$f":"①謝金入力シート!$C25","v":0}]
[18,{"$f":"①謝金入力シート!$B26","v":0},{"$f":"①謝金入力シート!$C26","v":0}]
[19,{"$f":"①謝金入力シート!$B27","v":0},{"$f":"①謝金入力シート!$C27","v":0}]
[20,{"$f":"①謝金入力シート!$B28","v":0},{"$f":"①謝金入力シート!$C28","v":0}]
[21,{"$f":"①謝金入力シート!$B29","v":0},{"$f":"①謝金入力シート!$C29","v":0}]
[22,{"$f":"①謝金入力シート!$B30","v":0},{"$f":"①謝金入力シート!$C30","v":0}]
[23,{"$f":"①謝金入力シート!$B31","v":0},{"$f":"①謝金入力シート!$C31","v":0}]
[24,{"$f":"①謝金入力シート!$B32","v":0},{"$f":"①謝金入力シート!$C32","v":0}]
[25,{"$f":"①謝金入力シート!$B33","v":0},{"$f":"①謝金入力シート!$C33","v":0}]
[26,{"$f":"①謝金入力シート!$B34","v":0},{"$f":"①謝金入力シート!$C34","v":0}]
[27,{"$f":"①謝金入力シート!$B35","v":0},{"$f":"①謝金入力シート!$C35","v":0}]
[28,{"$f":"①謝金入力シート!$B36","v":0},{"$f":"①謝金入力シート!$C36","v":0}]
[29,{"$f":"①謝金入力シート!$B37","v":0},{"$f":"①謝金入力シート!$C37","v":0}]
[30,{"$f":"①謝金入力シート!$B38","v":0},{"$f":"①謝金入力シート!$C38","v":0}]
[31,{"$f":"①謝金入力シート!$B39","v":0},{"$f":"①謝金入力シート!$C39","v":0}]
[32,{"$f":"①謝金入力シート!$B40","v":0},{"$f":"①謝金入力シート!$C40","v":0}]
[33,{"$f":"①謝金入力シート!$B41","v":0},{"$f":"①謝金入力シート!$C41","v":0}]
[34,{"$f":"①謝金入力シート!$B42","v":0},{"$f":"①謝金入力シート!$C42","v":0}]
[35,{"$f":"①謝金入力シート!$B43","v":0},{"$f":"①謝金入力シート!$C43","v":0}]
[36,{"$f":"①謝金入力シート!$B44","v":0},{"$f":"①謝金入力シート!$C44","v":0}]
[37,{"$f":"①謝金入力シート!$B45","v":0},{"$f":"①謝金入力シート!$C45","v":0}]
[38,{"$f":"①謝金入力シート!$B46","v":0},{"$f":"①謝金入力シート!$C46","v":0}]
[39,{"$f":"①謝金入力シート!$B47","v":0},{"$f":"①謝金入力シート!$C47","v":0}]
[40,{"$f":"①謝金入力シート!$B48","v":0},{"$f":"①謝金入力シート!$C48","v":0}]
[41,{"$f":"①謝金入力シート!$B49","v":0},{"$f":"①謝金入力シート!$C49","v":0}]
[42,{"$f":"①謝金入力シート!$B50","v":0},{"$f":"①謝金入力シート!$C50","v":0}]
[43,{"$f":"①謝金入力シート!$B51","v":0},{"$f":"①謝金入力シート!$C51","v":0}]
[44,{"$f":"①謝金入力シート!$B52","v":0},{"$f":"①謝金入力シート!$C52","v":0}]
[45,{"$f":"①謝金入力シート!$B53","v":0},{"$f":"①謝金入力シート!$C53","v":0}]
[46,{"$f":"①謝金入力シート!$B54","v":0},{"$f":"①謝金入力シート!$C54","v":0}]
[47,{"$f":"①謝金入力シート!$B55","v":0},{"$f":"①謝金入力シート!$C55","v":0}]
[48,{"$f":"①謝金入力シート!$B56","v":0},{"$f":"①謝金入力シート!$C56","v":0}]
[49,{"$f":"①謝金入力シート!$B57","v":0},{"$f":"①謝金入力シート!$C57","v":0}]
[50,{"$f":"①謝金入力シート!$B58","v":0},{"$f":"①謝金入力シート!$C58","v":0}]
[51,{"$f":"①謝金入力シート!$B59","v":0},{"$f":"①謝金入力シート!$C59","v":0}]
[52,{"$f":"①謝金入力シート!$B60","v":0},{"$f":"①謝金入力シート!$C60","v":0}]
[53,{"$f":"①謝金入力シート!$B61","v":0},{"$f":"①謝金入力シート!$C61","v":0}]
[54,{"$f":"①謝金入力シート!$B62","v":0},{"$f":"①謝金入力シート!$C62","v":0}]
[55,{"$f":"①謝金入力シート!$B63","v":0},{"$f":"①謝金入力シート!$C63","v":0}]
[56,{"$f":"①謝金入力シート!$B64","v":0},{"$f":"①謝金入力シート!$C64","v":0}]
[57,{"$f":"①謝金入力シート!$B65","v":0},{"$f":"①謝金入力シート!$C65","v":0}]
[58,{"$f":"①謝金入力シート!$B66","v":0},{"$f":"①謝金入力シート!$C66","v":0}]
[59,{"$f":"①謝金入力シート!$B67","v":0},{"$f":"①謝金入力シート!$C67","v":0}]
[60,{"$f":"①謝金入力シート!$B68","v":0},{"$f":"①謝金入力シート!$C68","v":0}]
[61,{"$f":"①謝金入力シート!$B69","v":0},{"$f":"①謝金入力シート!$C69","v":0}]
[62,{"$f":"①謝金入力シート!$B70","v":0},{"$f":"①謝金入力シート!$C70","v":0}]
[63,{"$f":"①謝金入力シート!$B71","v":0},{"$f":"①謝金入力シート!$C71","v":0}]
[64,{"$f":"①謝金入力シート!$B72","v":0},{"$f":"①謝金入力シート!$C72","v":0}]
[65,{"$f":"①謝金入力シート!$B73","v":0},{"$f":"①謝金入力シート!$C73","v":0}]
[66,{"$f":"①謝金入力シート!$B74","v":0},{"$f":"①謝金入力シート!$C74","v":0}]
[67,{"$f":"①謝金入力シート!$B75","v":0},{"$f":"①謝金入力シート!$C75","v":0}]
[68,{"$f":"①謝金入力シート!$B76","v":0},{"$f":"①謝金入力シート!$C76","v":0}]
[69,{"$f":"①謝金入力シート!$B77","v":0},{"$f":"①謝金入力シート!$C77","v":0}]
[70,{"$f":"①謝金入力シート!$B78","v":0},{"$f":"①謝金入力シート!$C78","v":0}]
[71,{"$f":"①謝金入力シート!$B79","v":0},{"$f":"①謝金入力シート!$C79","v":0}]
[72,{"$f":"①謝金入力シート!$B80","v":0},{"$f":"①謝金入力シート!$C80","v":0}]
[73,{"$f":"①謝金入力シート!$B81","v":0},{"$f":"①謝金入力シート!$C81","v":0}]
[74,{"$f":"①謝金入力シート!$B82","v":0},{"$f":"①謝金入力シート!$C82","v":0}]
[75,{"$f":"①謝金入力シート!$B83","v":0},{"$f":"①謝金入力シート!$C83","v":0}]
[76,{"$f":"①謝金入力シート!$B84","v":0},{"$f":"①謝金入力シート!$C84","v":0}]
[77,{"$f":"①謝金入力シート!$B85","v":0},{"$f":"①謝金入力シート!$C85","v":0}]
[78,{"$f":"①謝金入力シート!$B86","v":0},{"$f":"①謝金入力シート!$C86","v":0}]
[79,{"$f":"①謝金入力シート!$B87","v":0},{"$f":"①謝金入力シート!$C87","v":0}]
[80,{"$f":"①謝金入力シート!$B88","v":0},{"$f":"①謝金入力シート!$C88","v":0}]
[81,{"$f":"①謝金入力シート!$B89","v":0},{"$f":"①謝金入力シート!$C89","v":0}]
[82,{"$f":"①謝金入力シート!$B90","v":0},{"$f":"①謝金入力シート!$C90","v":0}]
[83,{"$f":"①謝金入力シート!$B91","v":0},{"$f":"①謝金入力シート!$C91","v":0}]
[84,{"$f":"①謝金入力シート!$B92","v":0},{"$f":"①謝金入力シート!$C92","v":0}]
[85,{"$f":"①謝金入力シート!$B93","v":0},{"$f":"①謝金入力シート!$C93","v":0}]
[86,{"$f":"①謝金入力シート!$B94","v":0},{"$f":"①謝金入力シート!$C94","v":0}]
[87,{"$f":"①謝金入力シート!$B95","v":0},{"$f":"①謝金入力シート!$C95","v":0}]
[88,{"$f":"①謝金入力シート!$B96","v":0},{"$f":"①謝金入力シート!$C96","v":0}]
[89,{"$f":"①謝金入力シート!$B97","v":0},{"$f":"①謝金入力シート!$C97","v":0}]
[90,{"$f":"①謝金入力シート!$B98","v":0},{"$f":"①謝金入力シート!$C98","v":0}]
[91,{"$f":"①謝金入力シート!$B99","v":0},{"$f":"①謝金入力シート!$C99","v":0}]
[92,{"$f":"①謝金入力シート!$B100","v":0},{"$f":"①謝金入力シート!$C100","v":0}]
[93,{"$f":"①謝金入力シート!$B101","v":0},{"$f":"①謝金入力シート!$C101","v":0}]
[94,{"$f":"①謝金入力シート!$B102","v":0},{"$f":"①謝金入力シート!$C102","v":0}]
[95,{"$f":"①謝金入力シート!$B103","v":0},{"$f":"①謝金入力シート!$C103","v":0}]
[96,{"$f":"①謝金入力シート!$B104","v":0},{"$f":"①謝金入力シート!$C104","v":0}]
[97,{"$f":"①謝金入力シート!$B105","v":0},{"$f":"①謝金入力シート!$C105","v":0}]
[98,{"$f":"①謝金入力シート!$B106","v":0},{"$f":"①謝金入力シート!$C106","v":0}]
[99,{"$f":"①謝金入力シート!$B107","v":0},{"$f":"①謝金入力シート!$C107","v":0}]
[100,{"$f":"①謝金入力シート!$B108","v":0},{"$f":"①謝金入力シート!$C108","v":0}]

{"sheet":"③領収書","index":3,"n_rows":109,"n_cols":82,"rows_kept":109,"cut":false,"hidden":false,"merged":[[23,3,23,8],[24,3,25,8],[15,30,15,31],[24,9,26,16],[24,17,26,18],[24,19,26,22],[32,17,32,23],[35,2,35,5],[35,6,35,13],[28,2,28,3],[28,4,28,5],[28,7,28,8],[28,10,28,11],[29,14,29,15],[31,14,31,15],[21,22,21,23],[23,9,23,16],[23,17,23,18],[23,19,23,22],[21,1,21,5],[21,7,21,9],[21,12,21,13],[21,15,21,17],[21,19,21,20],[17,21,17,22],[16,19,16,20],[16,21,16,22],[17,3,17,4],[17,5,17,6],[17,7,17,8],[17,9,17,10],[17,11,17,12],[17,13,17,14],[17,15,17,16],[17,17,17,18],[16,3,16,4],[16,5,16,6],[16,7,16,8],[16,9,16,10],[16,11,16,12],[16,13,16,14],[16,15,16,16],[16,17,16,18],[17,19,17,20],[14,21,14,22],[15,3,15,4],[15,5,15,6],[15,7,15,8],[15,9,15,10],[15,11,15,12],[15,13,15,14],[15,15,15,16],[15,17,15,18],[15,19,15,20],[15,21,15,22],[14,3,14,4],[14,5,14,6],[14,7,14,8],[14,9,14,10],[14,11,14,12],[14,13,14,14],[14,15,14,16],[14,17,14,18],[14,19,14,20],[13,21,13,22],[6,1,6,10],[6,11,6,12],[6,13,6,14],[6,15,6,16],[6,17,6,18],[6,19,6,20],[11,1,11,5],[11,7,11,9],[11,12,11,13],[8,1,8,3],[11,17,11,20],[13,1,13,2],[13,3,13,4],[13,5,13,6],[13,7,13,8],[13,9,13,10],[13,11,13,12],[13,13,13,14],[13,15,13,16],[13,17,13,18],[13,19,13,20],[8,4,8,12],[1,1,1,8],[2,1,2,24],[3,1,3,10],[3,11,3,12],[3,13,3,14],[3,15,3,16],[3,17,3,18],[3,19,3,20],[3,21,3,22],[3,23,3,24],[4,23,5,24],[5,9,5,10],[6,21,6,22],[6,23,6,24],[4,1,5,6],[4,7,5,7],[4,9,4,10],[4,11,5,12],[4,13,5,14],[4,15,5,16],[4,17,5,18],[4,19,5,20],[4,21,5,22]]}
[null,null,null,null,null,null,null,null,null,null,null,null,null,null,null,null,null,"令和４年度　ジュニア育成（地区）用",null,null,null,null,null,null,null,null,null,null,6]
[null,null,null,null,null,null,null,null,null,null,null,null,null,null,null,null,null,null,null,null,null,null,null,null,null,null,null,null,null,null,null,null,null,null,null,null,null,null,null,null,null,null,null,null,null,null,null,null,null,null,null,null,null,null,null,null,null,null,null,null,null,null,null,null,null,null,null,null,null,null,null,null,null,null,null,null,null,null,null,null,null,"項番入力欄"]
[null,"領　　収　　書",null,null,null,null,null,null,null,null,null,null,null,null,null,null,null,null,null,null,null,null,null,null,null,null,null,null,"総支給額",null,null,null,null,null,null,null,null,null,null,null,null,null,null,null,null,null,null,null,null,null,null,null,null,null,null,null,null,null,null,null,null,null,null,null,null,null,null,null,null,null,null,null,null,null,null,null,null,null,null,null,null,2]
[null,"①　総支給額\n　　【下記内訳（１）＋（２）】",null,null,null,null,null,null,null,null,null,{"$f":"AE4","v":""},null,{"$f":"AF4","v":""},null,{"$f":"AG4","v":""},null,{"$f":"AH4","v":""},null,{"$f":"AI4","v":""},null,{"$f":"AJ4","v":"￥"},null,{"$f":"AK4","v":0},null,null,null,null,{"$f":"R12+H22","v":0},null,{"$f":"IF(OR(AF4=\"￥\",AF4=\"\"),\"\",IF($AC$4<1000000,\"￥\",INT(MOD($AC$4,10000000)/1000000)))","v":""},{"$f":"IF(OR(AG4=\"￥\",AG4=\"\"),\"\",IF($AC$4<100000,\"￥\",INT(MOD($AC$4,1000000)/100000)))","v":""},{"$f":"IF(OR(AH4=\"￥\",AH4=\"\"),\"\",IF($AC$4<10000,\"￥\",INT(MOD($AC$4,100000)/10000)))","v":""},{"$f":"IF(OR(AI4=\"￥\",AI4=\"\"),\"\",IF($AC$4<1000,\"￥\",INT(MOD($AC$4,10000)/1000)))","v":""},{"$f":"IF(OR(AJ4=\"￥\",AJ4=\"\"),\"\",IF($AC$4<100,\"￥\",INT(MOD($AC$4,1000)/100)))","v":""},{"$f":"IF(OR(AK4=\"￥\",AK4=\"\"),\"\",IF($AC$4<10,\"￥\",INT(MOD($AC$4,100)/10)))","v":"￥"},{"$f":"IF($AC$4=\"\",\"￥\",INT(MOD($AC$4,10)/1))","v":0}]
[null,"②　源泉徴収額・\n　　復興特別所得税額\n　　【課税対象額×10.21％\n　　　　　　　　　（小数点切捨）】",null,null,null,null,null,"徴\n収",{"$f":"IF(OR($AB$6=\"無\",$AB$6=0),\"\",\"●\")","v":""},"有",null,{"$f":"AE6","v":""},null,{"$f":"AF6","v":""},null,{"$f":"AG6","v":""},null,{"$f":"AH6","v":""},null,{"$f":"AI6","v":""},null,{"$f":"AJ6","v":"￥"},null,{"$f":"AK6","v":0},null,null,null,"源泉チェック","源泉額"]
[null,null,null,null,null,null,null,null,{"$f":"IF($I$5=\"\",\"●\",\"\")","v":"●"},"無",null,null,null,null,null,null,null,null,null,null,null,null,null,null,null,null,null,{"$f":"VLOOKUP($CD$3,①謝金入力シート!A9:E108,5,0)","v":0},{"$f":"IF(OR($AB$6=\"無\",$AB$6=0),0,ROUNDDOWN($AC$4*0.1021,0))","v":0},null,{"$f":"IF(OR(AF6=\"￥\",AF6=\"\"),\"\",IF($AC$6<1000000,\"￥\",INT(MOD($AC$6,10000000)/1000000)))","v":""},{"$f":"IF(OR(AG6=\"￥\",AG6=\"\"),\"\",IF($AC$6<100000,\"￥\",INT(MOD($AC$6,1000000)/100000)))","v":""},{"$f":"IF(OR(AH6=\"￥\",AH6=\"\"),\"\",IF($AC$6<10000,\"￥\",INT(MOD($AC$6,100000)/10000)))","v":""},{"$f":"IF(OR(AI6=\"￥\",AI6=\"\"),\"\",IF($AC$6<1000,\"￥\",INT(MOD($AC$6,10000)/1000)))","v":""},{"$f":"IF(OR(AJ6=\"￥\",AJ6=\"\"),\"\",IF($AC$6<100,\"￥\",INT(MOD($AC$6,1000)/100)))","v":""},{"$f":"IF(OR(AK6=\"￥\",AK6=\"\"),\"\",IF($AC$6<10,\"￥\",INT(MOD($AC$6,100)/10)))","v":"￥"},{"$f":"IF($AC$6=\"\",\"￥\",INT(MOD($AC$6,10)/1))","v":0}]
[null," 差引支給額【①—②】",null,null,null,null,null,null,null,null,null,{"$f":"AE8","v":""},null,{"$f":"AF8","v":""},null,{"$f":"AG8","v":""},null,{"$f":"AH8","v":""},null,{"$f":"AI8","v":""},null,{"$f":"AJ8","v":"￥"},null,{"$f":"AK8","v":0},null,null,null,null,"総支給額\n（源泉チェック）"]
[null,null,null,null,null,null,null,null,null,null,null,null,null,null,null,null,null,null,null,null,null,null,null,null,null,null,null,null,{"$f":"AC4-AC6","v":0},null,{"$f":"IF(OR(AF8=\"￥\",AF8=\"\"),\"\",IF($AC$8<1000000,\"￥\",INT(MOD($AC$8,10000000)/1000000)))","v":""},{"$f":"IF(OR(AG8=\"￥\",AG8=\"\"),\"\",IF($AC$8<100000,\"￥\",INT(MOD($AC$8,1000000)/100000)))","v":""},{"$f":"IF(OR(AH8=\"￥\",AH8=\"\"),\"\",IF($AC$8<10000,\"￥\",INT(MOD($AC$8,100000)/10000)))","v":""},{"$f":"IF(OR(AI8=\"￥\",AI8=\"\"),\"\",IF($AC$8<1000,\"￥\",INT(MOD($AC$8,10000)/1000)))","v":""},{"$f":"IF(OR(AJ8=\"￥\",AJ8=\"\"),\"\",IF($AC$8<100,\"￥\",INT(MOD($AC$8,1000)/100)))","v":""},{"$f":"IF(OR(AK8=\"￥\",AK8=\"\"),\"\",IF($AC$8<10,\"￥\",INT(MOD($AC$8,100)/10)))","v":"￥"},{"$f":"IF($AC$8=\"\",\"￥\",INT(MOD($AC$8,10)/1))","v":0}]
[null,"区分",null,null,{"$f":"VLOOKUP(CD3,①謝金入力シート!A9:C108,3,0)","v":0}]
[null,"　　　"]
[null,"【内　 訳】"]
[null,"（１）謝　金：",null,null,null,null,"＠",{"$f":"VLOOKUP($CD3,①謝金入力シート!$A$9:$D$108,4,0)","v":0},null,null,"円","×",{"$f":"VLOOKUP(CD3,①謝金入力シート!$A$9:$BE$108,57,0)","v":0},null,"日","＝","￥",{"$f":"$H$12*$M$12","v":0},null,null,null,"円"]
[null,null,null,null,null,null,null,null,null,null,null,null,null,null,null,null,null,null,null,null,null,null,null,null,null,null,null,null,"交通費チェック",null,1,2,3,4,5,6,7,8,9,10,11,12,13,14,15,16,17,18,19,20,21,22,23,24,25,26,27,28,29,30,31,32,33,34,35,36,37,38,39,40,41,42,43,44,45,46,47,48,49,50]
[null,"日　程",null,{"$f":"IF(VLOOKUP($CD$3,①謝金入力シート!$A$9:$BD$108,7,0)=0,\"\",VLOOKUP($CD$3,①謝金入力シート!$A$9:$BD$108,7,0))","v":""},null,{"$f":"IF(VLOOKUP($CD$3,①謝金入力シート!$A$9:$BD$108,8,0)=0,\"\",VLOOKUP($CD$3,①謝金入力シート!$A$9:$BD$108,8,0))","v":""},null,{"$f":"IF(VLOOKUP($CD$3,①謝金入力シート!$A$9:$BD$108,9,0)=0,\"\",VLOOKUP($CD$3,①謝金入力シート!$A$9:$BD$108,9,0))","v":""},null,{"$f":"IF(VLOOKUP($CD$3,①謝金入力シート!$A$9:$BD$108,10,0)=0,\"\",VLOOKUP($CD$3,①謝金入力シート!$A$9:$BD$108,10,0))","v":""},null,{"$f":"IF(VLOOKUP($CD$3,①謝金入力シート!$A$9:$BD$108,11,0)=0,\"\",VLOOKUP($CD$3,①謝金入力シート!$A$9:$BD$108,11,0))","v":""},null,{"$f":"IF(VLOOKUP($CD$3,①謝金入力シート!$A$9:$BD$108,12,0)=0,\"\",VLOOKUP($CD$3,①謝金入力シート!$A$9:$BD$108,12,0))","v":""},null,{"$f":"IF(VLOOKUP($CD$3,①謝金入力シート!$A$9:$BD$108,13,0)=0,\"\",VLOOKUP($CD$3,①謝金入力シート!$A$9:$BD$108,13,0))","v":""},null,{"$f":"IF(VLOOKUP($CD$3,①謝金入力シート!$A$9:$BD$108,14,0)=0,\"\",VLOOKUP($CD$3,①謝金入力シート!$A$9:$BD$108,14,0))","v":""},null,{"$f":"IF(VLOOKUP($CD$3,①謝金入力シート!$A$9:$BD$108,15,0)=0,\"\",VLOOKUP($CD$3,①謝金入力シート!$A$9:$BD$108,15,0))","v":""},null,{"$f":"IF(VLOOKUP($CD$3,①謝金入力シート!$A$9:$BD$108,16,0)=0,\"\",VLOOKUP($CD$3,①謝金入力シート!$A$9:$BD$108,16,0))","v":""},null,null,null,null,null,null,{"$f":"IF(VLOOKUP(CD3,②交通費入力シート!A6:G105,7,0)=\"\",\"\",\"あり\")","v":""},null,{"$f":"D14","v":""},{"$f":"F14","v":""},{"$f":"H14","v":""},{"$f":"J14","v":""},{"$f":"L14","v":""},{"$f":"N14","v":""},{"$f":"P14","v":""},{"$f":"R14","v":""},{"$f":"T14","v":""},{"$f":"V14","v":""},{"$f":"D15","v":""},{"$f":"F15","v":""},{"$f":"H15","v":""},{"$f":"J15","v":""},{"$f":"L15","v":""},{"$f":"N15","v":""},{"$f":"P15","v":""},{"$f":"R15","v":""},{"$f":"T15","v":""},{"$f":"V15","v":""},{"$f":"D16","v":""},{"$f":"F16","v":""},{"$f":"H16","v":""},{"$f":"J16","v":""},{"$f":"L16","v":""},{"$f":"N16","v":""},{"$f":"P16","v":""},{"$f":"R16","v":""},{"$f":"T16","v":""},{"$f":"V16","v":""},{"$f":"D17","v":""},{"$f":"F17","v":""},{"$f":"H17","v":""},{"$f":"J17","v":""},{"$f":"L17","v":""},{"$f":"N17","v":""},{"$f":"P17","v":""},{"$f":"R17","v":""},{"$f":"T17","v":""},{"$f":"V17","v":""},{"$f":"D18","v":""},{"$f":"F18","v":""},{"$f":"H18","v":""},{"$f":"J18","v":""},{"$f":"L18","v":""},{"$f":"N18","v":""},{"$f":"P18","v":""},{"$f":"R18","v":""},{"$f":"T18","v":""},{"$f":"V18","v":""}]
[null,null,null,{"$f":"IF(VLOOKUP($CD$3,①謝金入力シート!$A$9:$BD$108,17,0)=0,\"\",VLOOKUP($CD$3,①謝金入力シート!$A$9:$BD$108,17,0))","v":""},null,{"$f":"IF(VLOOKUP($CD$3,①謝金入力シート!$A$9:$BD$108,18,0)=0,\"\",VLOOKUP($CD$3,①謝金入力シート!$A$9:$BD$108,18,0))","v":""},null,{"$f":"IF(VLOOKUP($CD$3,①謝金入力シート!$A$9:$BD$108,19,0)=0,\"\",VLOOKUP($CD$3,①謝金入力シート!$A$9:$BD$108,19,0))","v":""},null,{"$f":"IF(VLOOKUP($CD$3,①謝金入力シート!$A$9:$BD$108,20,0)=0,\"\",VLOOKUP($CD$3,①謝金入力シート!$A$9:$BD$108,20,0))","v":""},null,{"$f":"IF(VLOOKUP($CD$3,①謝金入力シート!$A$9:$BD$108,21,0)=0,\"\",VLOOKUP($CD$3,①謝金入力シート!$A$9:$BD$108,21,0))","v":""},null,{"$f":"IF(VLOOKUP($CD$3,①謝金入力シート!$A$9:$BD$108,22,0)=0,\"\",VLOOKUP($CD$3,①謝金入力シート!$A$9:$BD$108,22,0))","v":""},null,{"$f":"IF(VLOOKUP($CD$3,①謝金入力シート!$A$9:$BD$108,23,0)=0,\"\",VLOOKUP($CD$3,①謝金入力シート!$A$9:$BD$108,23,0))","v":""},null,{"$f":"IF(VLOOKUP($CD$3,①謝金入力シート!$A$9:$BD$108,24,0)=0,\"\",VLOOKUP($CD$3,①謝金入力シート!$A$9:$BD$108,24,0))","v":""},null,{"$f":"IF(VLOOKUP($CD$3,①謝金入力シート!$A$9:$BD$108,25,0)=0,\"\",VLOOKUP($CD$3,①謝金入力シート!$A$9:$BD$108,25,0))","v":""},null,{"$f":"IF(VLOOKUP($CD$3,①謝金入力シート!$A$9:$BD$108,26,0)=0,\"\",VLOOKUP($CD$3,①謝金入力シート!$A$9:$BD$108,26,0))","v":""},null,null,null,null,null,null,"交通費全日チェック",null,{"$f":"INDEX(AE14:CB14,MATCH(TRUE,INDEX((AE14:CB14<>0),0),0))","v":""},{"$f":"INDEX(AE14:CB14,COUNT(AE14:CB14))","v":""},"","","","","","","","","","","","","","","","","","","","","","","","","","","","","","","","","","","","","","","","","","","","","","","","",""]
[null,null,null,{"$f":"IF(VLOOKUP($CD$3,①謝金入力シート!$A$9:$BD$108,27,0)=0,\"\",VLOOKUP($CD$3,①謝金入力シート!$A$9:$BD$108,27,0))","v":""},null,{"$f":"IF(VLOOKUP($CD$3,①謝金入力シート!$A$9:$BD$108,28,0)=0,\"\",VLOOKUP($CD$3,①謝金入力シート!$A$9:$BD$108,28,0))","v":""},null,{"$f":"IF(VLOOKUP($CD$3,①謝金入力シート!$A$9:$BD$108,29,0)=0,\"\",VLOOKUP($CD$3,①謝金入力シート!$A$9:$BD$108,29,0))","v":""},null,{"$f":"IF(VLOOKUP($CD$3,①謝金入力シート!$A$9:$BD$108,30,0)=0,\"\",VLOOKUP($CD$3,①謝金入力シート!$A$9:$BD$108,30,0))","v":""},null,{"$f":"IF(VLOOKUP($CD$3,①謝金入力シート!$A$9:$BD$108,31,0)=0,\"\",VLOOKUP($CD$3,①謝金入力シート!$A$9:$BD$108,31,0))","v":""},null,{"$f":"IF(VLOOKUP($CD$3,①謝金入力シート!$A$9:$BD$108,32,0)=0,\"\",VLOOKUP($CD$3,①謝金入力シート!$A$9:$BD$108,32,0))","v":""},null,{"$f":"IF(VLOOKUP($CD$3,①謝金入力シート!$A$9:$BD$108,33,0)=0,\"\",VLOOKUP($CD$3,①謝金入力シート!$A$9:$BD$108,33,0))","v":""},null,{"$f":"IF(VLOOKUP($CD$3,①謝金入力シート!$A$9:$BD$108,34,0)=0,\"\",VLOOKUP($CD$3,①謝金入力シート!$A$9:$BD$108,34,0))","v":""},null,{"$f":"IF(VLOOKUP($CD$3,①謝金入力シート!$A$9:$BD$108,35,0)=0,\"\",VLOOKUP($CD$3,①謝金入力シート!$A$9:$BD$108,35,0))","v":""},null,{"$f":"IF(VLOOKUP($CD$3,①謝金入力シート!$A$9:$BD$108,36,0)=0,\"\",VLOOKUP($CD$3,①謝金入力シート!$A$9:$BD$108,36,0))","v":""},null,null,null,null,null,null,{"$f":"IF(VLOOKUP(CD3,②交通費入力シート!A6:G105,4,0)=\"●\",\"全日\",\"\")","v":""},null,{"$f":"TEXT(INDEX(AE14:CB14,MATCH(TRUE,INDEX((AE14:CB14<>0),0),0)),\"ｍ月ｄ日\")&\"～\"&TEXT(INDEX(AE14:CB14,COUNT(AE14:CB14)),\"ｍ月ｄ日\")","v":{"$error":"#VALUE!"}},null,"↑をTEXTを咬ませてがっちゃんこした"]
[null,null,null,{"$f":"IF(VLOOKUP($CD$3,①謝金入力シート!$A$9:$BD$108,37,0)=0,\"\",VLOOKUP($CD$3,①謝金入力シート!$A$9:$BD$108,37,0))","v":""},null,{"$f":"IF(VLOOKUP($CD$3,①謝金入力シート!$A$9:$BD$108,38,0)=0,\"\",VLOOKUP($CD$3,①謝金入力シート!$A$9:$BD$108,38,0))","v":""},null,{"$f":"IF(VLOOKUP($CD$3,①謝金入力シート!$A$9:$BD$108,39,0)=0,\"\",VLOOKUP($CD$3,①謝金入力シート!$A$9:$BD$108,39,0))","v":""},null,{"$f":"IF(VLOOKUP($CD$3,①謝金入力シート!$A$9:$BD$108,40,0)=0,\"\",VLOOKUP($CD$3,①謝金入力シート!$A$9:$BD$108,40,0))","v":""},null,{"$f":"IF(VLOOKUP($CD$3,①謝金入力シート!$A$9:$BD$108,41,0)=0,\"\",VLOOKUP($CD$3,①謝金入力シート!$A$9:$BD$108,41,0))","v":""},null,{"$f":"IF(VLOOKUP($CD$3,①謝金入力シート!$A$9:$BD$108,42,0)=0,\"\",VLOOKUP($CD$3,①謝金入力シート!$A$9:$BD$108,42,0))","v":""},null,{"$f":"IF(VLOOKUP($CD$3,①謝金入力シート!$A$9:$BD$108,43,0)=0,\"\",VLOOKUP($CD$3,①謝金入力シート!$A$9:$BD$108,43,0))","v":""},null,{"$f":"IF(VLOOKUP($CD$3,①謝金入力シート!$A$9:$BD$108,44,0)=0,\"\",VLOOKUP($CD$3,①謝金入力シート!$A$9:$BD$108,44,0))","v":""},null,{"$f":"IF(VLOOKUP($CD$3,①謝金入力シート!$A$9:$BD$108,45,0)=0,\"\",VLOOKUP($CD$3,①謝金入力シート!$A$9:$BD$108,45,0))","v":""},null,{"$f":"IF(VLOOKUP($CD$3,①謝金入力シート!$A$9:$BD$108,46,0)=0,\"\",VLOOKUP($CD$3,①謝金入力シート!$A$9:$BD$108,46,0))","v":""},null,null,null,null,null,null,null,null,{"$f":"VLOOKUP($CD$3,②交通費入力シート!$A$6:$G$105,5,0)","v":0},{"$f":"IF(AC16=\"全日\",VLOOKUP(CD3,①謝金入力シート!A9:BE108,57,0),VLOOKUP($CD$3,②交通費入力シート!$A$6:$G$105,6,0))","v":0}]
[null,null,null,{"$f":"IF(VLOOKUP($CD$3,①謝金入力シート!$A$9:$BD$108,47,0)=0,\"\",VLOOKUP($CD$3,①謝金入力シート!$A$9:$BD$108,47,0))","v":""},null,{"$f":"IF(VLOOKUP($CD$3,①謝金入力シート!$A$9:$BD$108,48,0)=0,\"\",VLOOKUP($CD$3,①謝金入力シート!$A$9:$BD$108,48,0))","v":""},null,{"$f":"IF(VLOOKUP($CD$3,①謝金入力シート!$A$9:$BD$108,49,0)=0,\"\",VLOOKUP($CD$3,①謝金入力シート!$A$9:$BD$108,49,0))","v":""},null,{"$f":"IF(VLOOKUP($CD$3,①謝金入力シート!$A$9:$BD$108,50,0)=0,\"\",VLOOKUP($CD$3,①謝金入力シート!$A$9:$BD$108,50,0))","v":""},null,{"$f":"IF(VLOOKUP($CD$3,①謝金入力シート!$A$9:$BD$108,51,0)=0,\"\",VLOOKUP($CD$3,①謝金入力シート!$A$9:$BD$108,51,0))","v":""},null,{"$f":"IF(VLOOKUP($CD$3,①謝金入力シート!$A$9:$BD$108,52,0)=0,\"\",VLOOKUP($CD$3,①謝金入力シート!$A$9:$BD$108,52,0))","v":""},null,{"$f":"IF(VLOOKUP($CD$3,①謝金入力シート!$A$9:$BD$108,53,0)=0,\"\",VLOOKUP($CD$3,①謝金入力シート!$A$9:$BD$108,53,0))","v":""},null,{"$f":"IF(VLOOKUP($CD$3,①謝金入力シート!$A$9:$BD$108,54,0)=0,\"\",VLOOKUP($CD$3,①謝金入力シート!$A$9:$BD$108,54,0))","v":""},null,{"$f":"IF(VLOOKUP($CD$3,①謝金入力シート!$A$9:$BD$108,55,0)=0,\"\",VLOOKUP($CD$3,①謝金入力シート!$A$9:$BD$108,55,0))","v":""},null,{"$f":"IF(VLOOKUP($CD$3,①謝金入力シート!$A$9:$BD$108,56,0)=0,\"\",VLOOKUP($CD$3,①謝金入力シート!$A$9:$BD$108,56,0))","v":""}]
[]
[]
[]
[null,"（２）交　通　費：",null,null,null,null,"￥",{"$f":"SUM($T$25:$W$27)","v":0},null,null,"円"]
[]
[null,null,null,"日　程",null,null,null,null,null,"利用区間 ※交通機関記載",null,null,null,null,null,null,null,"片道料金",null,"支給金額（往復）"]
[null,null,null,{"$f":"IF($AC$14=\"あり\",IF($AC$16=\"全日\",$AE$16,③領収書!$AE$17),\"\")","v":""},null,null,null,null,null,{"$f":"VLOOKUP($CD$3,②交通費入力シート!$A$6:$G$105,7,0)","v":0},null,null,null,null,null,null,null,{"$f":"VLOOKUP($CD$3,②交通費入力シート!$A$6:$H$105,8,0)","v":0},null,{"$f":"$R$25*2","v":0}]
[]
[null,null,null,null,null,{"$f":"$AF$17","v":0},{"$f":"IF($AC$14=\"あり\",\"日間\",\"\")","v":""}]
[]
[null,null,"令和",null,null,null,"年",null,null,"月",null,null,"日"]
[null,null,null,null,null,null,null,null,null,null,null,null,null,null,"住所："]
[]
[null,null,null,null,null,null,null,null,null,null,null,null,null,null,"氏名：",null,null,null,null,null,null,null,null,"印"]
[null,null,null,null,null,null,null,null,null,null,null,null,null,null,null,null,null,"※自筆、捺印のこと"]
[]
[]
[null,null,"地区体育協会名：",null,null,null,{"$f":"①謝金入力シート!C4","v":0},null,null,null,null,null,null,null,"宛"]
[null,null,null,null,null,null,null,null,null,null,null,null,null,null,null,null,null,null,null,null,null,null,null,null,{"$f":"VLOOKUP(CD3,①謝金入力シート!A9:B108,2,0)","v":0},null,"←この氏名は確認用",null,null,null,null,null,null,null,null,null,null,null,null,null,null,null,null,null,null,null,null,null,null,null,null,null,null,null,null,null,null,null,null,null,null,null,null,null,null,null,null,null,null,null,null,null,null,null,null,null,null,null,null,null,null,"←確認用氏名"]
[]
[]
[]
[]
[]
[]
[]
[]
[]
[]
[]
[]
[]
[]
[]
[]
[]
[]
[]
[]
[]
[]
[]
[]
[]
[]
[]
[]
[]
[]
[]
[]
[]
[]
[]
[]
[]
[]
[]
[]
[]
[]
[]
[]
[]
[]
[]
[]
[]
[]
[]
[]
[]
[]
[]
[]
[]
[]
[]
[]
[]
[]
[]
[]
[]
[]
[]
[]
[]
[]
[]
[null,null,null,null,null,null,null,null,null,null,null,null,null,null,null,null,null,null,null,null,null,null,null,null,null,null,null,null,null,null,null,null,null,null,null,null,null,null,null,null,null,null,null,null,null,null,null,null,null,null,null,null,null,null,null,null,null,10]

{"sheet":"③領収書（手打ち用）","index":4,"n_rows":36,"n_cols":24,"rows_kept":36,"cut":false,"hidden":false,"merged":[[24,8,26,8],[24,9,26,16],[24,17,26,18],[24,19,26,22],[32,17,32,23],[35,2,35,5],[35,6,35,13],[28,2,28,3],[28,4,28,5],[28,7,28,8],[28,10,28,11],[29,14,29,15],[31,14,31,15],[24,3,26,7],[21,1,21,5],[21,7,21,9],[21,12,21,13],[21,15,21,17],[21,19,21,20],[21,22,21,23],[23,9,23,16],[23,17,23,18],[23,19,23,22],[23,3,23,8],[16,21,16,22],[17,3,17,4],[17,5,17,6],[17,7,17,8],[17,9,17,10],[17,11,17,12],[17,13,17,14],[17,15,17,16],[17,17,17,18],[17,19,17,20],[17,21,17,22],[16,3,16,4],[16,5,16,6],[16,7,16,8],[16,9,16,10],[16,11,16,12],[16,13,16,14],[16,15,16,16],[16,17,16,18],[16,19,16,20],[14,21,14,22],[15,3,15,4],[15,5,15,6],[15,7,15,8],[15,9,15,10],[15,11,15,12],[15,13,15,14],[15,15,15,16],[15,17,15,18],[15,19,15,20],[15,21,15,22],[14,3,14,4],[14,5,14,6],[14,7,14,8],[14,9,14,10],[14,11,14,12],[14,13,14,14],[14,15,14,16],[14,17,14,18],[14,19,14,20],[13,1,13,2],[13,3,13,4],[13,5,13,6],[13,7,13,8],[13,9,13,10],[13,11,13,12],[6,19,6,20],[6,21,6,22],[6,23,6,24],[8,1,8,3],[8,4,8,12],[11,1,11,5],[11,7,11,9],[11,12,11,13],[11,17,11,20],[13,13,13,14],[13,15,13,16],[13,17,13,18],[13,19,13,20],[13,21,13,22],[4,17,5,18],[4,19,5,20],[4,21,5,22],[4,23,5,24],[5,9,5,10],[6,1,6,10],[6,11,6,12],[6,13,6,14],[6,15,6,16],[6,17,6,18],[4,1,5,6],[4,7,5,7],[4,9,4,10],[4,11,5,12],[4,13,5,14],[4,15,5,16],[1,1,1,8],[2,1,2,24],[3,1,3,10],[3,11,3,12],[3,13,3,14],[3,15,3,16],[3,17,3,18],[3,19,3,20],[3,21,3,22],[3,23,3,24]]}
[null,null,null,null,null,null,null,null,null,null,null,null,null,null,null,null,null,{"$f":"③領収書!R1","v":"令和４年度　ジュニア育成（地区）用"}]
[]
[null,"領　　収　　書"]
[null,"①　総支給額\n　　【下記内訳（１）＋（２）】"]
[null,"②　源泉徴収額・\n　　復興特別所得税額\n　　【課税対象額×10.21％\n　　　　　　　　　（小数点切捨）】",null,null,null,null,null,"徴\n収",null,"有"]
[null,null,null,null,null,null,null,null,null,"無"]
[null," 差引支給額【①—②】"]
[]
[null,"区分"]
[null,"　　　"]
[null,"【内　 訳】"]
[null,"（１）謝　金：",null,null,null,null,"＠",null,null,null,"円","×",null,null,"日","＝","￥",{"$f":"H12*M12","v":0},null,null,null,"円"]
[]
[null,"日　程"]
[]
[]
[]
[]
[]
[]
[]
[null,"（２）交　通　費：",null,null,null,null,"￥",{"$f":"SUM(T25:W27)","v":0},null,null,"円"]
[]
[null,null,null,"日　程",null,null,null,null,null,"利用区間 ※交通機関記載",null,null,null,null,null,null,null,"片道料金",null,"支給金額（往復）"]
[null,null,null,null,null,null,null,null,"日分",null,null,null,null,null,null,null,null,null,null,{"$f":"I28*2*R25","v":0}]
[]
[]
[]
[null,null,"令和",null,null,null,"年",null,null,"月","　",null,"日"]
[null,null,null,null,null,null,null,null,null,null,null,null,null,null,"住所："]
[]
[null,null,null,null,null,null,null,null,null,null,null,null,null,null,"氏名：",null,null,null,null,null,null,null,null,"印"]
[null,null,null,null,null,null,null,null,null,null,null,null,null,null,null,null,null,"※自筆、捺印のこと"]
[]
[]
[null,null,"地区体育協会名：",null,null,null,null,null,null,null,null,null,null,null,"宛"]